Workbook

Sheet Spis tabel
A1: SPIS TABEL
A3: Tablica 1. Liczba zakładów pracy chronionej i liczba osób niepełnosprawnych zatrudnionych w tych zakładach w latach 1992-2019
A4: Tablica 2. Zatrudnienie i jego struktura w zakładach pracy chronionej
A5: Tablica 3. Struktura zatrudnienia osób niepełnosprawnych w zakładach pracy chronionej

Sheet Tab. 1
A1: Tablica 1. Liczba zakładów pracy chronionej i liczba osób niepełnosprawnych zatrudnionych w tych zakładach w latach 1992-2021 (I półrocze)
A2: według stanu na koniec czerwca 2021 r.
A3: Lata | B3: Liczba zakładów pracy chronionej | C3: Zatrudnienie ogółem | E3: w tym osób niepełnosprawnych | G3: Udział osób niepełnosprawnych w zatrudnieniu ogółem w etatach | H3: Liczba zpch, które nie nadesłały informacji do wojewodów | I3: Liczba zatrudnionych osób niepełnosprawnych przypadająca na jeden zpch
C4: w osobach | D4: w etatach | E4: w osobach | F4: w etatach | G4: w % | I4: w osobach
A5: 1 | B5: 2 | C5: 3 | D5: 4 | E5: 5 | F5: 6 | G5: 7 | H5: 8 | I5: 9
A6: czerwiec 2021 | B6: 780 | C6: 120,496 | D6: 114,222 | E6: 93,699 | F6: 90,093 | G6: =(F6/D6*100) -> 78.9 | H6: 3 | I6: =(E6/B6) -> 120
A7: grudzień 2020 | B7: 797 | C7: 128,988 | D7: 122,095 | E7: 100,079 | F7: 96,211 | G7: =(F7/D7*100) -> 78.8 | H7: 3 | I7: =(E7/B7) -> 126
A8: 2020-06-01 | B8: 805 | C8: 128,690 | D8: 120,535 | E8: 100,091 | F8: 95,249 | G8: =(F8/D8*100) -> 79.0 | H8: 4 | I8: =(E8/B8) -> 124
A9: 2019-12-01 | B9: 867 | C9: 138,483 | D9: 131,236 | E9: 107,903 | F9: 103,984 | G9: =(F9/D9*100) -> 79.2 | H9: 7 | I9: =(E9/B9) -> 124
A10: 2019-06-01 | B10: 886 | C10: 134,117 | D10: 134,969 | E10: 104,025 | F10: 106,765 | G10: =(F10/D10*100) -> 79.1 | H10: 5 | I10: =(E10/B10) -> 117
A11: 2018-12-01 | B11: 922 | C11: 145,876 | D11: 138,255 | E11: 113,766 | F11: 109,460 | G11: =(F11/D11*100) -> 79.2 | H11: 9 | I11: =(E11/B11) -> 123
A12: 2018-06-01 | B12: 975 | C12: 153,430 | D12: 145,572 | E12: 120,157 | F12: 115,427 | G12: =(F12/D12*100) -> 79.3 | H12: 1 | I12: =(E12/B12) -> 123
A13: 2017-12-31 | B13: 1038 | C13: 166,248 | D13: 157,239 | E13: 129,195 | F13: 123,943 | G13: 78.8 | H13: 8 | I13: 124
A14: 2017-06-30 | B14: 1052 | C14: 169,206 | D14: 159,968 | E14: 132,793 | F14: 126,801 | G14: 79.3 | H14: 12 | I14: 126
A15: 2016-12-30 | B15: 1102 | C15: 164,826 | D15: 155,380 | E15: 130,512 | F15: 124,005 | G15: 79.8 | H15: 10 | I15: =(E15/B15) -> 118
A16: 2016-06-30 | B16: 1120 | C16: 163,455 | D16: 154,904 | E16: 129,302 | F16: 122,625 | G16: 79.2 | H16: 8 | I16: 115
A17: 2015-12-15 | B17: 1179 | C17: 164,088 | D17: 155,809 | E17: 128,800 | F17: 122,793 | G17: 78.8 | H17: 9 | I17: 109
A18: 2015-06-12 | B18: 1215 | C18: 167,632 | D18: 158,330 | E18: 132,104 | F18: 125,287 | G18: 79.1 | H18: 14 | I18: 109
A19: 2014-12-12 | B19: 1278 | C19: 185,410 | D19: 174,981 | E19: 147,790 | F19: 139,873 | G19: 79.9 | H19: 11 | I19: 116
A20: 2014-06-12 | B20: 1334 | C20: 196,943 | D20: 186,224 | E20: 157,573 | F20: 148,836 | G20: 79.9 | H20: 10 | I20: 118
A21: 2013-12-12 | B21: 1416 | C21: 220,343 | D21: 209,523 | E21: 177,080 | F21: 168,592 | G21: 80.5 | H21: 10 | I21: 125
A22: 2013-06-12 | B22: 1403 | C22: 216,561 | D22: 205,306 | E22: 173,055 | F22: 164,556 | G22: 80.2 | H22: 38 | I22: 123
A23: 2012-12-12 | B23: 1454 | C23: 220,332 | D23: 207,463 | E23: 172,830 | F23: 163,700 | G23: 78.9 | H23: 22 | I23: 119
A24: 2012-06-12 | B24: 1679 | C24: 234,913 | D24: 222,603 | E24: 175,098 | F24: 166,290 | G24: 74.7 | H24: 41 | I24: 104
A25: 2011-12-11 | B25: 1797 | C25: 271,760 | D25: 254,954 | E25: 192,563 | F25: 182,771 | G25: 71.7 | H25: 17 | I25: 107
A26: 2011-06-11 | B26: 1823 | C26: 262,606 | D26: 248,053 | E26: 189,061 | F26: 178,065 | G26: 71.8 | H26: 38 | I26: 104
A27: 2010-12-10 | B27: 1952 | C27: 286,867 | D27: 271,714 | E27: 204,451 | F27: 193,570 | G27: 71.2 | H27: 42 | I27: 105
A28: 2010-06-10 | B28: 1969 | C28: 281,417 | D28: 269,675 | E28: 197,156 | F28: 187,323 | G28: 69.5 | H28: 39 | I28: 100
A29: 2009-12-31 | B29: 2038 | C29: 289,856 | D29: 268,082 | E29: 194,282 | F29: 183,650 | G29: 68.5 | H29: 38 | I29: 95
A30: 2009-06-30 | B30: 2054 | C30: 267,893 | D30: 253,398 | E30: 182,244 | F30: 172,042 | G30: 67.9 | H30: 47 | I30: 89
A31: 2008-12-01 | B31: 2104 | C31: 284,984 | D31: 270,380 | E31: 189,141 | F31: 177,909 | G31: 65.8 | H31: 47 | I31: 90
A32: 2008-06-01 | B32: 2268 | C32: 299,169 | D32: 285,360 | E32: 193,050 | F32: 182,190 | G32: 63.8 | H32: 51 | I32: 85
A33: 2007-12-01 | B33: 2230 | C33: 301,005 | D33: 285,479 | E33: 194,359 | F33: 184,006 | G33: 64.5 | H33: 27 | I33: 87
A34: 2007-06-01 | B34: 2259 | C34: 301,070 | D34: 385,361 | E34: 192,607 | F34: 182,191 | G34: 47.3 | H34: 51 | I34: 85
A35: 2006-12-01 | B35: 2307 | C35: 299,988 | D35: 283,739 | E35: 192,379 | F35: 180,752 | G35: 63.7 | H35: 39 | I35: 83
A36: 2006-06-01 | B36: 2295 | C36: 286,776 | D36: 271,104 | E36: 181,163 | F36: 170,777 | G36: 63.0 | H36: 70 | I36: 79
A37: 2005-12-01 | B37: 2393 | C37: 298,389 | D37: 280,900 | E37: 186,061 | F37: 174,745 | G37: 62.2 | H37: 71 | I37: 78
A38: 2005-06-01 | B38: 2444 | C38: 300,667 | D38: 282,113 | E38: 184,826 | F38: 173,563 | G38: 61.5 | H38: 30 | I38: 76
A39: 2004-12-01 | B39: 2584 | C39: 312,077 | D39: 293,558 | E39: 189,769 | F39: 179,231 | G39: 61.1 | H39: 50 | I39: 73
A40: 2004-06-01 | B40: 2732 | C40: 334,589 | D40: 313,157 | E40: 203,333 | F40: 191,001 | G40: 61.0 | H40: 29 | I40: 74
A41: 2003-12-01 | B41: 2864 | C41: 349,810 | D41: 325,337 | E41: 208,793 | F41: 193,973 | G41: 59.6 | H41: 79 | I41: 73
A42: 2003-06-01 | B42: 2965 | C42: 348,898 | D42: 322,173 | E42: 205,722 | F42: 190,819 | G42: 59.2 | H42: 88 | I42: 69
A43: 2002-12-01 | B43: 3082 | C43: 345,604 | D43: 321,979 | E43: 202,682 | F43: 188,316 | G43: 58.5 | H43: 45 | I43: 66
A44: 2002-06-01 | B44: 3111 | C44: 341,290 | D44: 317,108 | E44: 198,340 | F44: 185,456 | G44: 58.5 | H44: 67 | I44: 64
A45: 2001-12-01 | B45: 3181 | C45: 348,279 | D45: 324,982 | E45: 203,609 | F45: 189,106 | G45: 58.2 | H45: 53 | I45: 64
A46: 2001-06-01 | B46: 3204 | C46: 351,977 | D46: 328,989 | E46: 206,249 | F46: 191,925 | G46: 58.3 | H46: 122 | I46: 64
A47: 2000-12-01 | B47: 3274 | C47: 358,480 | D47: 334,548 | E47: 208,680 | F47: 195,270 | G47: 58.4 | H47: 174 | I47: 64
A48: 2000-06-01 | B48: 3461 | C48: 351,690 | D48: 328,062 | E48: 205,595 | F48: 191,333 | G48: 58.3 | H48: 153 | I48: 59
A49: 1) Dla lat 2000-2017 dane dotyczące liczby zakładów pracy chronionej jak i dane dotyczące zatrudnienia w tych zakładach nie uwzględniają zakładów, które nie wywiązały się z obowiązku sprawozdawczego.

Sheet Tab.2
A1: Tablica 2. Zatrudnienie i jego struktura w zakładach pracy chronionej
A2: według stanu na koniec czerwca 2021 r.
A3: Województwo | B3: Liczba ZPCh | C3: Zatrudnienie ogółem | D3: w tym zatrudnione osoby niepełnosprawne według stopnia niepełnosprawności
D4: Razem | F4: Znaczny | L4: Umiarkowany | R4: Lekki
F5: ogółem | H5: psch i uu | J5: niewidomi | L5: ogółem | N5: psch i uu | P5: niewidomi | R5: ogółem | T5: psch i uu | V5: niewidomi
C6: w osobach | E6: w % | F6: w osobach | G6: w % | H6: w osobach | I6: w % | J6: w osobach | K6: w % | L6: w osobach | M6: w % | N6: w osobach | O6: w % | P6: w osobach | Q6: w % | R6: w osobach | S6: w % | T6: w osobach | U6: w % | V6: w osobach | W6: w %
A7: 1 | B7: 2 | C7: 3 | D7: 4 | E7: 4/3 | F7: 5 | G7: 5/4 | H7: 7 | I7: 7/5 | J7: 8 | K7: 8/5 | L7: 9 | M7: 9/4 | N7: 10 | O7: 10/9 | P7: 11 | Q7: 11/9 | R7: 12 | S7: 12/4 | T7: 13 | U7: 13/12 | V7: 14 | W7: 14/12
A8: Ogółem | B8: =SUM(B9:B24) -> 780 | C8: =SUM(C9:C24) -> 120,496 | D8: =SUM(D9:D24) -> 93,699 | E8: =D8/C8*100 -> 77.8 | F8: =SUM(F9:F24) -> 8,078 | G8: =F8/D8*100 -> 8.6 | H8: =SUM(H9:H24) -> 975 | I8: =H8/F8*100 -> 12.1 | J8: =SUM(J9:J24) -> 2,153 | K8: =J8/F8*100 -> 26.7 | L8: =SUM(L9:L24) -> 66,232 | M8: =L8/D8*100 -> 70.7 | N8: =SUM(N9:N24) -> 18,266 | O8: =N8/L8*100 -> 27.6 | P8: =SUM(P9:P24) -> 4,620 | Q8: =P8/L8*100 -> 7.0 | R8: =SUM(R9:R24) -> 19,420 | S8: =R8/D8*100 -> 20.7 | T8: =SUM(T9:T24) -> 4,426 | U8: =T8/R8*100 -> 22.8 | V8: =SUM(V9:V24) -> 396 | W8: =V8/R8*100 -> 2.0
A9: Dolnośląskie | B9: 66 | C9: 15,207 | D9: 11,718 | E9: =D9/C9*100 -> 77.1 | F9: 1,173 | G9: =F9/D9*100 -> 10.0 | H9: 100 | I9: =H9/F9*100 -> 8.5 | J9: 357 | K9: =J9/F9*100 -> 30.5 | L9: 8,325 | M9: =L9/D9*100 -> 71.0 | N9: 2,092 | O9: =N9/L9*100 -> 25.1 | P9: 633 | Q9: =P9/L9*100 -> 7.6 | R9: 2,220 | S9: =R9/D9*100 -> 18.9 | T9: 402 | U9: =T9/R9*100 -> 18.1 | V9: 49 | W9: =V9/R9*100 -> 2.2
A10: Kujawsko-pomorskie | B10: 53 | C10: 5,876 | D10: 4,747 | E10: 80.8 | F10: 361 | G10: 7.6 | H10: 65 | I10: 18.0 | J10: 73 | K10: 20.2 | L10: 3,447 | M10: 72.6 | N10: 1,180 | O10: 34.2 | P10: 216 | Q10: 6.3 | R10: 928 | S10: 19.5 | T10: 278 | U10: 30.0 | V10: 6 | W10: 0.6
A11: Lubelskie | B11: 18 | C11: 2,002 | D11: 1,301 | E11: 65.0 | F11: 76 | G11: 5.8 | H11: 1 | I11: 1.3 | J11: 45 | K11: 59.2 | L11: 662 | M11: 50.9 | N11: 105 | O11: 15.9 | P11: 44 | Q11: 6.6 | R11: 564 | S11: 43.3 | T11: 92 | U11: 16.2 | V11: 11 | W11: 2.0
A12: Lubuskie | B12: 37 | C12: 4,773 | D12: 4,072 | E12: 85.3 | F12: 619 | G12: 15.2 | H12: 73 | I12: 11.8 | J12: 101 | K12: 16.3 | L12: 2,866 | M12: 70.4 | N12: 459 | O12: 16.0 | P12: 235 | Q12: 8.2 | R12: 587 | S12: 14.4 | T12: 87 | U12: 14.8 | V12: 29 | W12: 4.9
A13: Łódzkie | B13: 59 | C13: 8,972 | D13: 7,298 | E13: 81.3 | F13: 477 | G13: 6.5 | H13: 95 | I13: 19.9 | J13: 104 | K13: 21.7 | L13: 5,252 | M13: 72.0 | N13: 1,869 | O13: 35.6 | P13: 402 | Q13: 7.7 | R13: 1,569 | S13: 21.5 | T13: 324 | U13: 20.6 | V13: 28 | W13: 1.8
A14: Małopolskie | B14: 40 | C14: 8,371 | D14: 6,331 | E14: 75.6 | F14: 410 | G14: 6.5 | H14: 50 | I14: 12.1 | J14: 80 | K14: 19.6 | L14: 4,483 | M14: 70.8 | N14: 965 | O14: 21.5 | P14: 143 | Q14: 3.2 | R14: 1,438 | S14: 22.7 | T14: 369 | U14: 25.7 | V14: 0 | W14: 0.0
A15: Mazowieckie | B15: 68 | C15: 22,062 | D15: 17,093 | E15: 77.5 | F15: 1,622 | G15: 9.5 | H15: 183 | I15: 11.3 | J15: 591 | K15: 36.5 | L15: 12,730 | M15: 74.5 | N15: 3,606 | O15: 28.3 | P15: 735 | Q15: 5.8 | R15: 2,740 | S15: 16.0 | T15: 671 | U15: 24.5 | V15: 84 | W15: 3.1
A16: Opolskie | B16: 13 | C16: 2,071 | D16: 1,389 | E16: 67.1 | F16: 70 | G16: 5.0 | H16: 9 | I16: 12.9 | J16: 16 | K16: 22.9 | L16: 946 | M16: 68.1 | N16: 184 | O16: 19.4 | P16: 59 | Q16: 6.2 | R16: 415 | S16: 29.8 | T16: 70 | U16: 16.9 | V16: 8 | W16: 1.9
A17: Podkarpackie | B17: 68 | C17: 6,967 | D17: 5,698 | E17: 81.8 | F17: 349 | G17: 6.1 | H17: 24 | I17: 6.9 | J17: 61 | K17: 17.5 | L17: 3,879 | M17: 68.1 | N17: 1,288 | O17: 33.2 | P17: 311 | Q17: 8.0 | R17: 1,469 | S17: 25.8 | T17: 494 | U17: 33.6 | V17: 29 | W17: 2.0
A18: Podlaskie | B18: 13 | C18: 933 | D18: 682 | E18: 73.1 | F18: 85 | G18: 12.4 | H18: 2 | I18: 2.4 | J18: 61 | K18: 71.9 | L18: 364 | M18: 53.4 | N18: 93 | O18: 25.5 | P18: 44 | Q18: 12.1 | R18: 233 | S18: 34.1 | T18: 40 | U18: 17.2 | V18: 14 | W18: 6.0
A19: Pomorskie | B19: 67 | C19: 9,018 | D19: 7,452 | E19: 82.6 | F19: 908 | G19: 12.2 | H19: 133 | I19: 14.6 | J19: 147 | K19: 16.1 | L19: 5,662 | M19: 76.0 | N19: 1,559 | O19: 27.5 | P19: 506 | Q19: 8.9 | R19: 882 | S19: 11.8 | T19: 224 | U19: 25.4 | V19: 49 | W19: 5.6
A20: Śląskie | B20: 92 | C20: 14,540 | D20: 11,071 | E20: 76.1 | F20: 915 | G20: 8.3 | H20: 106 | I20: 11.6 | J20: 226 | K20: 24.7 | L20: 7,397 | M20: 66.8 | N20: 2,113 | O20: 28.6 | P20: 547 | Q20: 7.4 | R20: 2,759 | S20: 24.9 | T20: 564 | U20: 20.4 | V20: 0 | W20: 0.0
A21: Świętokrzyskie | B21: 33 | C21: 2,821 | D21: 2,236 | E21: 79.3 | F21: 192 | G21: 8.6 | H21: 10 | I21: 5.2 | J21: 28 | K21: 14.6 | L21: 1,724 | M21: 77.1 | N21: 372 | O21: 21.6 | P21: 113 | Q21: 6.5 | R21: 320 | S21: 14.3 | T21: 76 | U21: 23.6 | V21: 6 | W21: 1.9
A22: Warmińsko-mazurskie | B22: 36 | C22: 3,764 | D22: 2,988 | E22: 79.4 | F22: 240 | G22: 8.0 | H22: 13 | I22: 5.3 | J22: 102 | K22: 42.4 | L22: 1,841 | M22: 61.6 | N22: 426 | O22: 23.2 | P22: 190 | Q22: 10.3 | R22: 907 | S22: 30.4 | T22: 197 | U22: 21.7 | V22: 36 | W22: 4.0
A23: Wielkopolskie | B23: 106 | C23: 12,396 | D23: 9,069 | E23: 73.2 | F23: 519 | G23: 5.7 | H23: 94 | I23: 18.1 | J23: 153 | K23: 29.5 | L23: 6,298 | M23: 69.4 | N23: 1,830 | O23: 29.0 | P23: 426 | Q23: 6.8 | R23: 2,252 | S23: 24.8 | T23: 501 | U23: 22.2 | V23: 43 | W23: 1.9
A24: Zachodnio-pomorskie | B24: 11 | C24: 722 | D24: 553 | E24: 76.6 | F24: 61 | G24: 11.0 | H24: 17 | I24: 27.9 | J24: 8 | K24: 13.1 | L24: 354 | M24: 64.0 | N24: 126 | O24: 35.6 | P24: 16 | Q24: 4.5 | R24: 138 | S24: 24.9 | T24: 36 | U24: 26.1 | V24: 5 | W24: 3.6
A25: Źródło: sprawozdania wojewodów INF-ZPCh ZAZ w I półroczu 2021r.
A26: objaśnienia: skrót "psch i uu" oznacza schorzenia szczególne

Sheet Tab.3
A1: Tablica 3. Zatrudnienie w spółdzielniach iwalidów (SI) oraz spółdzielniach niewidomych (SN)
A2: Lata | B2: Liczba ZPCh | C2: w tym liczba SI i SN | D2: Zatrudnienie ogółem w SI i SN | E2: w tym osób niepełnosprawnych
C3: w osobach | F3: w %
A4: 1 | B4: 2 | C4: 3 | D4: 4 | E4: 5 | F4: 5/4
A5: czerwiec 2021 | B5: 780 | C5: 105 | D5: 11,537 | E5: 8,915 | F5: =E5/D5*100 -> 77.3
A6: grudzień 2020 | B6: 797 | C6: 105 | D6: 11,893 | E6: 9,256 | F6: =E6/D6*100 -> 77.8
A7: 2020-06-01 | B7: 805 | C7: 101 | D7: 11,917 | E7: 9,386 | F7: =E7/D7*100 -> 78.8
A8: 2019-12-01 | B8: 867 | C8: 113 | D8: 13,629 | E8: 10,752 | F8: =E8/D8*100 -> 78.9
A9: 2019-06-01 | B9: 886 | C9: 113 | D9: 13,417 | E9: 10,535 | F9: =E9/D9*100 -> 78.5
A10: 2018-12-01 | B10: 922 | C10: 119 | D10: 14,857 | E10: 11,818 | F10: =E10/D10*100 -> 79.5
A11: 2018-06-01 | B11: 975 | C11: 131 | D11: 15,972 | E11: 12,469 | F11: 78.1
A12: 2017-12-31 | B12: 1,038 | C12: 136 | D12: 16,551 | E12: 13,199 | F12: 79.7
A13: 2017-06-30 | B13: 1,052 | C13: 145 | D13: 17,659 | E13: 14,259 | F13: 80.7
A14: 2016-12-30 | B14: 1,102 | C14: 149 | D14: 17,801 | E14: 14,447 | F14: 81.2
A15: 2016-06-30 | B15: 1,120 | C15: 146 | D15: 18,185 | E15: 14,526 | F15: 79.9
A16: 2015-12-15 | B16: 1,179 | C16: 155 | D16: 20,584 | E16: 16,297 | F16: 79.2
A17: 2015-06-12 | B17: 1,215 | C17: 165 | D17: 21,694 | E17: 17,193 | F17: 79.3
A18: 2014-12-12 | B18: 1,278 | C18: 171 | D18: 23,641 | E18: 18,862 | F18: 79.8
A19: 2014-06-12 | B19: 1,334 | C19: 180 | D19: 25,395 | E19: 20,336 | F19: 80.1
A20: 2013-12-12 | B20: 1,416 | C20: 184 | D20: 23,860 | E20: 18,981 | F20: 79.6
A21: 2013-06-12 | B21: 1,403 | C21: 185 | D21: 28,305 | E21: 22,657 | F21: 80.0
A22: 2012-12-12 | B22: 1,454 | C22: 202 | D22: 29,897 | E22: 23,882 | F22: 79.9
A23: 2012-06-12 | B23: 1,679 | C23: 201 | D23: 31,296 | E23: 24,949 | F23: 79.7
A24: 2011-12-11 | B24: 1,797 | C24: 237 | D24: 37,898 | E24: 29,886 | F24: 78.9
A25: 2011-06-11 | B25: 1,821 | C25: 231 | D25: 37,007 | E25: 29,368 | F25: 79.4
A26: 2010-12-10 | B26: 1,952 | C26: 248 | D26: 41,455 | E26: 32,468 | F26: 78.3
A27: 2010-06-10 | B27: 1,969 | C27: 260 | D27: 41,636 | E27: 32,485 | F27: 78.0
A28: 2009-12-31 | B28: 2,038 | C28: 265 | D28: 43,651 | E28: 33,641 | F28: 77.1
A29: 2009-06-30 | B29: 2,054 | C29: 260 | D29: 41,150 | E29: 31,527 | F29: 76.6
A30: 2008-12-01 | B30: 2,104 | C30: 270 | D30: 45,106 | E30: 33,989 | F30: 75.4
